bitfinex/quotes_BTCUSD_20220306
["timestamp","ask_amount","ask_price","bid_price","bid_amount"]
[1646528098275,0.60098916,39575.0,39574.0,0.25295002]
[1646528098674,0.76187478,39575.0,39574.0,0.25295002]
[1646528098874,0.264841,39575.0,39574.0,0.25295002]
[1646528099074,0.42572662,39575.0,39574.0,0.25295002]
[1646528099277,0.264841,39575.0,39574.0,0.25295002]
[1646528101325,0.57573949,39575.0,39574.0,0.25295002]
[1646528101527,0.264841,39575.0,39574.0,0.25295002]
[1646528101724,0.57573972,39575.0,39574.0,0.25295002]
[1646528105270,0.264841,39575.0,39574.0,0.25295002]
[1646528105472,0.57573972,39575.0,39574.0,0.25295002]
[1646528106172,0.264841,39575.0,39574.0,0.25295002]
[1646528107173,0.57573972,39575.0,39574.0,0.25295002]
[1646528114381,0.62653972,39575.0,39574.0,0.25295002]
[1646528114781,0.315641,39575.0,39574.0,0.25295002]
[1646528115631,0.62654217,39575.0,39574.0,0.25295002]
[1646528116429,0.315641,39575.0,39574.0,0.25295002]
[1646528120178,0.31505896,39575.0,39574.0,0.25295002]
[1646528121377,0.93688528,39575.0,39574.0,0.25295002]
[1646528121576,0.62597208,39575.0,39574.0,0.25295002]
[1646528121777,0.31505896,39575.0,39574.0,0.25295002]
[1646528121977,0.62597588,39575.0,39574.0,0.25295002]
[1646528122978,0.57517588,39575.0,39574.0,0.25295002]
[1646528127082,0.26425896,39575.0,39574.0,0.25295002]
[1646528127682,0.57517633,39575.0,39574.0,0.25295002]
[1646528127883,0.26425896,39575.0,39574.0,0.25295002]
[1646528128884,0.57517243,39575.0,39574.0,0.25295002]
[1646528129784,0.26425896,39575.0,39574.0,0.25295002]
[1646528131736,0.57517629,39575.0,39574.0,0.25295002]
[1646528132539,0.26425896,39575.0,39574.0,0.25295002]
[1646528133339,0.57517647,39575.0,39574.0,0.25295002]
[1646528136178,0.26425896,39575.0,39574.0,0.25295002]
[1646528140434,0.57517647,39575.0,39574.0,0.25295002]
[1646528140634,0.26425896,39575.0,39574.0,0.25295002]
[1646528140835,0.57517647,39575.0,39574.0,0.25295002]
[1646528141637,0.26425896,39575.0,39574.0,0.25295002]
[1646528144779,0.26425896,39575.0,39574.0,0.25283543]
[1646528144780,0.523365,39575.0,39574.0,0.25283543]
[1646528144978,0.264289,39575.0,39574.0,0.25283543]
[1646528145180,0.52336494,39575.0,39574.0,0.25283543]
[1646528145380,0.0002438,39576.0,39574.0,0.25283543]
[1646528145828,0.25907568,39575.0,39574.0,0.25283543]
[1646528146032,0.0002438,39576.0,39574.0,0.58898359]
[1646528146331,0.47880313,39581.0,39577.0,0.00041674]
[1646528146532,0.16188562,39581.0,39577.0,0.3365649]
[1646528146731,0.31191751,39581.0,39577.0,0.3365649]
[1646528146928,0.001,39581.0,39577.0,0.3365649]
[1646528147130,0.31191751,39581.0,39577.0,0.19881022]
[1646528148132,0.001,39581.0,39577.0,0.19881022]
[1646528148931,0.00121653,39580.0,39577.0,0.19881022]
[1646528149881,0.0011,39580.0,39577.0,0.19881022]
[1646528150082,0.00135996,39580.0,39577.0,0.19881022]
[1646528151181,0.0011,39580.0,39577.0,0.19881022]
[1646528151380,0.00135996,39580.0,39577.0,0.19881022]
[1646528152381,0.0011,39580.0,39577.0,0.19881022]
[1646528152581,0.00135996,39580.0,39577.0,0.19881022]
[1646528153430,0.0011,39580.0,39577.0,0.19881022]
[1646528153726,0.00135996,39580.0,39577.0,0.19881022]
[1646528153927,0.31667747,39583.0,39577.0,0.19881022]
[1646528154127,0.264289,39582.0,39577.0,0.19881022]
[1646528154329,0.007,39583.0,39577.0,0.19881022]
[1646528154629,0.0033,39584.0,39577.0,0.19881022]
[1646528154829,0.264289,39583.0,39577.0,0.19881022]
[1646528156131,0.264289,39583.0,39577.0,0.19381022]
[1646528157379,0.00011654,39582.0,39577.0,0.19381022]
[1646528158181,0.00011654,39582.0,39578.0,0.33614816]
[1646528158379,0.264289,39583.0,39578.0,0.33614816]
[1646528158579,0.26454914,39582.0,39578.0,0.33614816]
[1646528158780,0.0033,39584.0,39577.0,0.19381022]
[1646528158983,0.264289,39585.0,39577.0,0.19381022]
[1646528160082,0.264289,39585.0,39578.0,0.33614816]
[1646528161344,0.264289,39585.0,39577.0,0.19381022]
[1646528161742,0.254289,39585.0,39577.0,0.19381022]
[1646528162142,0.00011615,39584.0,39577.0,0.19381022]
[1646528162343,0.254297,39583.0,39577.0,0.19381022]
[1646528163344,0.254297,39583.0,39574.0,0.25283543]
[1646528163744,0.5599632,39583.0,39574.0,0.25283543]
[1646528164145,0.3106662,39582.0,39574.0,0.25283543]
[1646528164381,0.249293,39581.0,39574.0,0.25283543]
[1646528164783,0.3106662,39582.0,39574.0,0.25283543]
[1646528164983,0.249293,39581.0,39574.0,0.25283543]
[1646528165181,0.3106662,39582.0,39574.0,0.25283543]
[1646528165382,0.249293,39581.0,39574.0,0.25283543]
[1646528165583,0.3106662,39582.0,39574.0,0.25283543]
[1646528165784,0.249293,39581.0,39574.0,0.25283543]
[1646528165983,0.3106662,39582.0,39574.0,0.25283543]
[1646528166183,0.249293,39581.0,39574.0,0.25283543]
[1646528166386,0.3106662,39582.0,39574.0,0.25283543]
[1646528166583,0.249293,39581.0,39574.0,0.25283543]
[1646528166784,0.3106662,39582.0,39574.0,0.25283543]
[1646528166985,0.249293,39581.0,39574.0,0.58898359]
[1646528167184,0.3106662,39582.0,39574.0,0.58898359]
[1646528168132,0.249293,39582.0,39574.0,0.58898359]
[1646528168931,0.3106662,39583.0,39574.0,0.58898359]
[1646528169132,0.249293,39582.0,39574.0,0.58898359]
[1646528169330,0.3106662,39583.0,39574.0,0.58898359]
[1646528169532,0.249293,39582.0,39574.0,0.58898359]
[1646528169731,0.3106662,39583.0,39574.0,0.58898359]
[1646528170533,0.3106662,39584.0,39574.0,0.58898359]
[1646528170733,0.31091876,39584.0,39574.0,0.58898359]
[1646528171531,0.3106662,39584.0,39574.0,0.58898359]
[1646528171734,0.31091049,39584.0,39574.0,0.58898359]
[1646528172678,0.3106662,39584.0,39574.0,0.58898359]
[1646528172877,0.31091049,39584.0,39574.0,0.58898359]
[1646528173678,0.249293,39583.0,39574.0,0.58898359]
[1646528174680,0.249293,39583.0,39574.0,0.33614816]
[1646528176032,0.3106662,39583.0,39574.0,0.33614816]
[1646528176332,0.3106662,39584.0,39574.0,0.33614816]
[1646528176731,0.3106662,39583.0,39574.0,0.33614816]
[1646528177134,0.0002439,39584.0,39575.0,0.551385]
[1646528177337,0.19235404,39586.0,39584.0,0.00048779]
[1646528177534,0.03146842,39586.0,39585.0,0.376005]
[1646528177735,0.03146842,39586.0,39585.0,0.71215316]
[1646528178137,0.03146842,39586.0,39585.0,0.33614816]
[1646528178533,0.03146842,39586.0,39584.0,0.19357768]
[1646528180387,0.03146842,39586.0,39584.0,0.00048779]
[1646528181584,0.03146842,39586.0,39584.0,0.21149612]
[1646528184245,0.03146842,39586.0,39585.0,0.376005]
[1646528185044,0.03146842,39586.0,39584.0,0.21149612]
[1646528185244,0.03146842,39586.0,39585.0,0.376005]
[1646528185447,0.03146842,39586.0,39584.0,0.21149612]
[1646528189281,0.03146842,39586.0,39585.0,0.33614816]
[1646528189482,0.03146842,39586.0,39585.0,0.71215316]
[1646528189882,0.03146842,39586.0,39585.0,0.33614816]
[1646528190480,0.03146842,39586.0,39584.0,0.21149612]
[1646528193237,0.03146842,39586.0,39585.0,0.376005]
[1646528193435,0.03146842,39586.0,39585.0,0.33614816]
[1646528193633,0.03146842,39586.0,39585.0,0.71215316]
[1646528195179,0.03146842,39586.0,39585.0,0.33614816]
[1646528195379,0.03146842,39586.0,39584.0,0.21149612]
[1646528195580,0.03146842,39586.0,39585.0,0.376005]
[1646528195781,0.03146842,39586.0,39584.0,0.21149612]
[1646528196781,0.03146842,39586.0,39585.0,0.376005]
[1646528196982,0.03146842,39586.0,39584.0,0.21149612]
[1646528204181,0.03146842,39586.0,39584.0,0.00048779]
[1646528205942,0.249293,39585.0,39584.0,0.00048779]
[1646528206144,0.03146842,39586.0,39584.0,0.00048779]
[1646528206342,0.249293,39585.0,39584.0,0.00048779]
[1646528206541,0.03146842,39586.0,39584.0,0.00048779]
[1646528206741,0.0508,39585.0,39584.0,0.00048779]
[1646528207545,0.256493,39587.0,39586.0,0.14569603]
[1646528207743,0.307293,39587.0,39586.0,0.14569603]
[1646528207944,0.64091294,39587.0,39586.0,0.14569603]
[1646528208745,0.303293,39587.0,39586.0,0.14569603]
[1646528214834,0.63691294,39587.0,39586.0,0.14569603]
[1646528215035,0.94757914,39587.0,39586.0,0.14569603]
[1646528215235,0.63691294,39587.0,39586.0,0.14569603]
[1646528215434,1.14199133,39587.0,39586.0,0.14569603]
[1646528215635,0.99955705,39587.0,39586.0,0.14569603]
[1646528215835,1.00548891,39587.0,39586.0,0.14569603]
[1646528216035,0.86305463,39587.0,39586.0,0.14569603]
[1646528216238,1.00548891,39587.0,39586.0,0.14569603]
[1646528216436,0.86305463,39587.0,39586.0,0.14569603]
[1646528216639,1.11200097,39587.0,39586.0,0.14569603]
[1646528216885,1.25443525,39587.0,39586.0,0.14569603]
[1646528217786,1.00548851,39587.0,39586.0,0.14569603]
[1646528217984,0.91876139,39587.0,39586.0,0.14569603]
[1646528218186,0.77632711,39587.0,39586.0,0.14569603]
[1646528218388,0.91876139,39587.0,39586.0,0.14569603]
[1646528218586,0.77632711,39587.0,39586.0,0.14569603]
[1646528218786,1.16770546,39587.0,39586.0,0.14569603]
[1646528218988,1.02527118,39587.0,39586.0,0.14569603]
[1646528219290,0.83408552,39587.0,39586.0,0.14569603]
[1646528219490,0.0032,39587.0,39586.0,0.14569603]
[1646528219689,0.0022,39587.0,39586.0,0.14569603]
[1646528220489,0.251493,39587.0,39586.0,0.14569603]
[1646528220732,0.0022,39587.0,39586.0,0.14569603]
[1646528221336,0.251493,39587.0,39586.0,0.14569603]
[1646528221737,0.0022,39587.0,39586.0,0.14569603]
[1646528222339,0.251493,39587.0,39586.0,0.14569603]
[1646528225193,0.00244477,39588.0,39587.0,0.75]
[1646528225388,0.00244477,39588.0,39587.0,1.55138194]
[1646528225589,0.0022,39588.0,39587.0,1.17543994]
[1646528226389,0.0001,39588.0,39587.0,1.20069994]
[1646528226585,0.0001,39588.0,39587.0,1.97259994]
[1646528226786,0.00064476,39590.0,39587.0,1.97259994]
[1646528226987,0.00024476,39589.0,39587.0,1.97259994]
[1646528227188,0.00024476,39589.0,39588.0,1.10551994]
[1646528227385,0.00024476,39589.0,39588.0,0.33361994]
[1646528227586,0.00024476,39589.0,39588.0,0.35887994]
[1646528227886,0.00064476,39590.0,39588.0,0.33361994]
[1646528228536,0.0032,39591.0,39588.0,0.33361994]
[1646528229838,0.0032,39591.0,39586.0,0.48013873]
[1646528230238,0.0032,39591.0,39586.0,0.14569603]
[1646528230439,0.0032,39591.0,39586.0,0.48013873]
[1646528230640,0.00331551,39591.0,39586.0,0.48013873]
[1646528231641,0.0032,39591.0,39586.0,0.48013873]
[1646528231894,0.00331551,39591.0,39586.0,0.48013873]
[1646528232701,0.0032,39591.0,39586.0,0.48013873]
[1646528232897,0.00346108,39591.0,39586.0,0.48013873]
[1646528233700,0.00346108,39591.0,39586.0,0.14569603]
[1646528233900,0.0032,39591.0,39586.0,0.14569603]
[1646528234298,0.00346108,39591.0,39586.0,0.14569603]
[1646528235102,0.0032,39591.0,39586.0,0.14569603]
[1646528235500,0.00346108,39591.0,39586.0,0.14569603]
[1646528235732,0.00346108,39591.0,39586.0,0.48013873]
[1646528236333,0.0032,39591.0,39586.0,0.48013873]
[1646528236732,0.00346108,39591.0,39586.0,0.14569603]
[1646528237636,0.0032,39592.0,39591.0,0.00692216]
[1646528244535,0.00151542,39593.0,39591.0,0.00692216]
[1646528244736,0.0014,39593.0,39591.0,0.00692216]
[1646528246883,0.0014,39593.0,39592.0,0.21974376]
[1646528251134,0.11841448,39601.0,39592.0,0.21974376]
[1646528251331,0.0032,39599.0,39593.0,0.18851584]
[1646528251729,0.0082,39599.0,39593.0,0.18851584]
[1646528252335,0.0082,39599.0,39592.0,0.21974376]
[1646528252932,0.0032,39599.0,39592.0,0.21974376]
[1646528253339,0.0032,39599.0,39593.0,0.17527315]
[1646528254690,0.00330376,39599.0,39593.0,0.17527315]
[1646528255089,0.00330376,39599.0,39598.0,0.20689236]
[1646528255692,0.0032,39599.0,39598.0,0.20689236]
[1646528257291,0.0032,39599.0,39591.0,0.00692216]
[1646528258735,0.0032,39599.0,39591.0,0.22609633]
[1646528259440,0.00346107,39599.0,39591.0,0.22609633]
[1646528259637,0.05792107,39600.0,39591.0,0.22609633]
[1646528260538,0.05792107,39600.0,39592.0,0.33576272]
[1646528260737,0.05792107,39600.0,39591.0,0.56185905]
[1646528261341,0.10872107,39600.0,39591.0,0.22609633]
[1646528261738,0.47114313,39600.0,39591.0,0.22609633]
[1646528262414,0.36242206,39599.0,39591.0,0.22609633]
[1646528262612,0.41322206,39599.0,39591.0,0.22609633]
[1646528263818,0.05601722,39597.0,39591.0,0.22609633]
[1646528264216,0.05101722,39597.0,39591.0,0.22609633]
[1646528265643,0.05101722,39597.0,39591.0,0.00692216]
[1646528266244,0.005,39598.0,39591.0,0.00692216]
[1646528267048,0.07053107,39600.0,39591.0,0.00692216]
[1646528267244,0.12133107,39600.0,39591.0,0.00692216]
[1646528267646,0.09633107,39600.0,39591.0,0.00692216]
[1646528268047,0.01261,39599.0,39591.0,0.00692216]
[1646528268247,0.06341,39599.0,39591.0,0.00692216]
[1646528268444,0.05841,39599.0,39591.0,0.00692216]
[1646528269396,0.0508,39599.0,39591.0,0.00692216]
[1646528269797,0.04553107,39600.0,39591.0,0.00692216]
[1646528271196,0.03292107,39600.0,39591.0,0.00692216]
[1646528271397,0.36247427,39599.0,39591.0,0.00692216]
[1646528274542,0.39539534,39600.0,39591.0,0.00692216]
[1646528278093,0.39539534,39600.0,39598.0,1.2237]
[1646528278298,0.03292107,39600.0,39598.0,1.2237]
[1646528279395,0.39539534,39600.0,39598.0,1.2237]
[1646528283337,0.03292107,39600.0,39598.0,1.2237]
[1646528283537,0.39539534,39600.0,39598.0,1.2237]
[1646528283737,0.03292107,39600.0,39598.0,1.2237]
[1646528285195,0.39539534,39600.0,39598.0,1.2237]
[1646528286005,0.1887045,39599.0,39598.0,1.2237]
[1646528286198,0.1853537,39599.0,39598.0,0.9237]
[1646528286999,0.0887045,39599.0,39598.0,0.9237]
[1646528289850,0.41324338,39599.0,39598.0,0.9237]
[1646528290053,0.36244338,39599.0,39598.0,0.9237]
[1646528290252,0.04553107,39600.0,39598.0,0.9237]
[1646528290253,0.39536445,39600.0,39598.0,0.9237]
[1646528295947,0.36244338,39599.0,39598.0,0.9237]
[1646528296550,0.46244338,39599.0,39598.0,0.9237]
[1646528296849,0.14277191,39599.0,39598.0,0.9237]
[1646528297048,0.19357191,39599.0,39598.0,0.9237]
[1646528297650,0.09357191,39599.0,39598.0,0.9237]
[1646528299490,0.14357191,39599.0,39598.0,0.9237]
[1646528300891,0.24357191,39599.0,39598.0,0.9237]
[1646528302392,0.23976231,39599.0,39598.0,0.9237]
[1646528303658,0.13976231,39599.0,39598.0,0.9237]
[1646528304256,0.23976231,39599.0,39598.0,0.9237]
[1646528305661,0.13976231,39599.0,39598.0,0.9237]
[1646528306918,0.41324761,39599.0,39598.0,0.9237]
[1646528307114,0.36244761,39599.0,39598.0,0.9237]
[1646528307317,0.46244761,39599.0,39598.0,0.9237]
[1646528309016,0.13856123,39599.0,39598.0,0.9237]
[1646528309217,0.36245308,39599.0,39598.0,0.9237]
[1646528309617,0.46245308,39599.0,39598.0,0.9237]
[1646528311649,0.14056722,39599.0,39598.0,0.9237]
[1646528311950,0.04056722,39599.0,39598.0,0.9237]
[1646528319552,0.03556722,39599.0,39598.0,0.9237]
[1646528321456,0.36245644,39599.0,39598.0,0.9237]
[1646528321893,0.46245644,39599.0,39598.0,0.9237]
[1646528325943,0.1,39599.0,39598.0,0.9237]
[1646528327145,0.1,39599.0,39598.0,0.6237]
[1646528327348,0.075,39599.0,39598.0,0.6237]
[1646528327549,0.39537751,39600.0,39598.0,0.6237]
[1646528333144,0.36537751,39600.0,39598.0,0.6237]
[1646528340496,0.36245644,39599.0,39598.0,0.6237]
[1646528340755,0.36537751,39600.0,39598.0,0.6237]
[1646528341557,0.36245644,39599.0,39598.0,0.6237]
[1646528341958,0.02880526,39599.0,39598.0,0.6237]
[1646528347122,0.36247462,39599.0,39598.0,0.6237]
[1646528347721,0.00292107,39600.0,39598.0,0.6237]
[1646528347722,0.36539569,39600.0,39598.0,0.6237]
[1646528349953,0.36247462,39599.0,39598.0,0.6237]
[1646528351155,0.36247462,39599.0,39598.0,0.8237]
[1646528352502,0.36247462,39599.0,39598.0,0.82361985]
[1646528352503,0.032925,39599.0,39598.0,0.82361985]
[1646528353798,0.36248725,39599.0,39598.0,0.82361985]
[1646528354398,0.16248725,39599.0,39598.0,0.82361985]
[1646528354597,0.00292107,39600.0,39598.0,0.82361985]
[1646528357161,0.00292107,39600.0,39599.0,0.20261231]
[1646528357364,0.00292107,39600.0,39599.0,0.53850295]
[1646528357766,0.001,39601.0,39600.0,0.70584214]
[1646528357965,0.001,39601.0,39600.0,1.24173278]
[1646528358263,0.00124472,39601.0,39600.0,1.24173278]
[1646528358863,0.001,39601.0,39600.0,1.24173278]
[1646528359698,0.001,39601.0,39600.0,0.90584214]
[1646528359900,0.001,39601.0,39600.0,0.20584214]
[1646528360301,0.4193,39602.0,39601.0,0.25]
[1646528360302,0.41054472,39602.0,39601.0,0.25]
[1646528360499,0.00124472,39602.0,39601.0,0.25]
[1646528361198,0.001,39602.0,39601.0,0.25]
[1646528361799,0.001,39602.0,39601.0,0.45]
[1646528362598,0.001,39602.0,39601.0,0.2]
[1646528363449,0.001,39602.0,39600.0,0.10584214]
[1646528363648,0.001,39602.0,39601.0,0.71141476]
[1646528363850,0.001,39602.0,39601.0,0.82361249]
[1646528364251,0.0051,39608.0,39602.0,1.126942]
[1646528364450,0.0022,39616.0,39607.0,0.0612798]
[1646528364649,0.0022,39616.0,39610.0,0.02526]
[1646528364852,0.0022,39616.0,39611.0,0.375942]
[1646528365052,0.9561,39613.0,39612.0,0.71141476]
[1646528365250,0.9561,39613.0,39610.0,0.33547276]
[1646528365453,0.9561,39613.0,39609.0,0.41499114]
[1646528366451,0.9561,39613.0,39609.0,0.202279]
[1646528366651,0.02527071,39610.0,39609.0,0.202279]
[1646528366903,0.9561,39613.0,39609.0,0.202279]
[1646528367402,0.9561,39613.0,39609.0,0.38913373]
[1646528367602,0.95621443,39613.0,39609.0,0.202279]
[1646528368403,0.9561,39613.0,39610.0,0.3321951]
[1646528368604,0.9561,39613.0,39610.0,0.18980294]
[1646528368806,0.95636061,39613.0,39610.0,0.18980294]
[1646528369007,0.95636061,39613.0,39611.0,0.3321951]
[1646528369206,0.95636061,39613.0,39610.0,0.18980294]
[1646528369407,0.95636061,39613.0,39609.0,0.202279]
[1646528369607,0.0022,39616.0,39611.0,0.75]
[1646528369809,0.0022,39616.0,39612.0,0.33550876]
[1646528370007,0.00026061,39613.0,39610.0,0.33550876]
[1646528370652,0.00026061,39613.0,39610.0,0.18553218]
[1646528370854,0.0022,39616.0,39610.0,0.52104094]
[1646528371855,0.0022,39616.0,39610.0,0.18553218]
[1646528372356,0.42051351,39615.0,39610.0,0.18553218]
[1646528372755,0.00221351,39615.0,39610.0,0.18553218]
[1646528372957,0.00221351,39615.0,39611.0,0.33550876]
[1646528373357,0.0021,39615.0,39611.0,0.33550876]
[1646528373557,0.00236071,39615.0,39609.0,0.202279]
[1646528373956,0.00236071,39615.0,39610.0,0.71145076]
[1646528374160,0.00236071,39615.0,39610.0,0.33550876]
[1646528374900,0.00236071,39615.0,39612.0,0.15215769]
[1646528375700,0.0021,39615.0,39613.0,0.71145076]
[1646528376102,0.00236072,39615.0,39613.0,0.71145076]
[1646528377004,0.0021,39615.0,39613.0,0.71145076]
[1646528377204,0.00221409,39615.0,39613.0,0.71145076]
[1646528377402,0.00221409,39615.0,39613.0,0.73671076]
[1646528377604,0.00221409,39615.0,39613.0,0.36076876]
[1646528377803,0.00221409,39615.0,39613.0,0.73671076]
[1646528378250,0.0021,39615.0,39613.0,0.71145076]
[1646528378451,0.0021,39615.0,39613.0,0.73671076]
[1646528378452,0.00236148,39615.0,39613.0,0.73671076]
[1646528379050,0.00236148,39615.0,39613.0,1.50861076]
[1646528379248,0.0021,39615.0,39613.0,1.50861076]
[1646528379449,0.0021,39615.0,39613.0,1.65861076]
[1646528379650,0.00236148,39615.0,39613.0,1.65861076]
[1646528379853,0.0011,39616.0,39613.0,1.65861076]
[1646528380153,0.0011,39616.0,39615.0,1.323102]
[1646528380353,0.0033,39618.0,39617.0,0.79716]
[1646528380552,0.0033,39618.0,39617.0,1.65861076]
[1646528380755,1.88164145,39630.0,39619.0,0.02526]
[1646528380956,1.88594145,39631.0,39620.0,0.401202]
[1646528381153,1.88594145,39631.0,39621.0,0.33550876]
[1646528381154,1.88084545,39631.0,39621.0,0.33550876]
[1646528381354,1.88062545,39631.0,39622.0,0.16556389]
[1646528381557,1.88062545,39631.0,39623.0,0.33550876]
[1646528381753,1.88062545,39631.0,39630.0,0.1727106]
[1646528382306,0.03664016,39629.0,39620.0,0.1234]
[1646528382506,0.03664016,39629.0,39618.0,0.0508]
[1646528382707,0.03664016,39629.0,39623.0,0.17112514]
[1646528382708,1.87084545,39627.0,39623.0,0.17112514]
[1646528382906,1.87084545,39627.0,39618.0,0.0508]
[1646528383110,0.03664016,39629.0,39618.0,0.0508]
[1646528383111,0.03664016,39629.0,39620.0,0.375942]
[1646528383310,0.03664016,39629.0,39621.0,0.3360328]
[1646528383508,0.03664016,39629.0,39622.0,0.375942]
[1646528383707,0.03664016,39629.0,39623.0,0.3360328]
[1646528383906,0.03664016,39629.0,39624.0,0.375942]
[1646528384105,0.03664016,39629.0,39626.0,0.58456124]
[1646528384312,0.00026143,39628.0,39627.0,0.50193097]
[1646528384516,0.4183,39636.0,39630.0,0.02526]
[1646528384711,0.00391965,39646.0,39635.0,0.17526]
[1646528384908,0.00391965,39646.0,39637.0,0.79716]
[1646528385108,0.00391965,39646.0,39641.0,0.17523405]
[1646528385314,0.4193,39653.0,39641.0,0.17523405]
[1646528385315,0.009,39666.0,39646.0,0.07526]
[1646528385512,0.009,39666.0,39658.0,0.375942]
[1646528385513,0.36117842,39666.0,39658.0,0.375942]
[1646528385777,0.36113364,39671.0,39667.0,0.79716]
[1646528385978,0.00407891,39678.0,39669.0,0.79707258]
[1646528386178,1.83584545,39679.0,39668.0,0.3626428]
[1646528386382,1.83584545,39679.0,39669.0,0.0508]
[1646528386581,0.06377429,39694.0,39685.0,1.62941453]
[1646528386778,0.37165231,39707.0,39693.0,0.15]
[1646528386779,0.36107314,39707.0,39693.0,0.15]
[1646528386991,0.015501,39708.0,39693.0,0.15]
[1646528386992,0.010501,39708.0,39706.0,0.6349]
[1646528387180,2.91449977,39711.0,39707.0,0.4148087]
[1646528387378,2.91449977,39711.0,39710.0,0.0399667]
[1646528387379,2.83297128,39711.0,39710.0,0.0399667]
[1646528387579,2.83297128,39711.0,39710.0,0.4147857]
[1646528387776,2.83297128,39711.0,39710.0,0.8016185]
[1646528388179,0.006103,39719.0,39710.0,0.8016185]
[1646528388180,0.006103,39719.0,39715.0,0.51979284]
[1646528388382,1.02220166,39716.0,39715.0,0.49879284]
[1646528388578,1.02220166,39716.0,39707.0,0.24362004]
[1646528388782,0.006103,39719.0,39707.0,0.24362004]
[1646528388783,0.38251386,39715.0,39707.0,0.00909892]
[1646528388978,0.006103,39719.0,39704.0,0.3360328]
[1646528389181,1.02220166,39705.0,39693.0,0.19282004]
[1646528389422,1.02220166,39700.0,39693.0,0.19282004]
[1646528389611,1.02220166,39697.0,39690.0,0.19999999]
[1646528389813,1.02220166,39697.0,39691.0,0.19282004]
[1646528390009,1.02220166,39697.0,39686.0,0.22039079]
[1646528390212,0.3360328,39696.0,39686.0,0.22039079]
[1646528390512,0.99170166,39690.0,39688.0,0.5]
[1646528390710,1.16491547,39690.0,39688.0,0.5]
[1646528390912,0.30384794,39689.0,39684.0,0.003]
[1646528391113,0.30384794,39689.0,39675.0,0.1689391]
[1646528391114,0.30384794,39685.0,39676.0,0.19282004]
[1646528391315,0.45013396,39688.0,39671.0,0.19282004]
[1646528391316,0.30384794,39677.0,39671.0,0.19282004]
[1646528391514,0.17719,39686.0,39671.0,0.19282004]
[1646528391515,0.30274794,39672.0,39671.0,0.19282004]
[1646528391711,0.30274794,39672.0,39666.0,0.19282004]
[1646528391712,0.30384794,39672.0,39666.0,0.19282004]
[1646528391915,0.17871386,39669.0,39664.0,0.06614674]
[1646528392216,0.17871386,39669.0,39662.0,0.19999999]
[1646528392217,0.0508,39668.0,39662.0,0.19999999]
[1646528392412,0.0508,39668.0,39663.0,0.3360328]
[1646528392618,0.05005254,39668.0,39667.0,0.0252245]
[1646528392812,0.2287664,39668.0,39660.0,0.3360328]
[1646528393011,0.04895254,39668.0,39664.0,0.07191748]
[1646528393282,0.00605248,39673.0,39667.0,0.02521845]
[1646528393487,0.31423477,39687.0,39669.0,0.85]
[1646528393488,0.17871386,39683.0,39669.0,0.85]
[1646528393687,0.17871386,39671.0,39650.0,0.01165778]
[1646528393987,0.17871386,39668.0,39660.0,0.374819]
[1646528394181,0.35271856,39680.0,39658.0,0.004]
[1646528394182,0.17871386,39669.0,39658.0,0.004]
[1646528394381,0.17871386,39664.0,39658.0,0.004]
[1646528394580,0.0508,39668.0,39660.0,0.374819]
[1646528394782,0.0508,39668.0,39662.0,0.06265483]
[1646528394980,0.85011856,39675.0,39662.0,0.06265483]
[1646528394981,0.17871386,39673.0,39666.0,0.02522004]
[1646528395179,0.17871386,39673.0,39663.0,0.374819]
[1646528395180,0.17871386,39673.0,39667.0,0.374819]
[1646528395383,0.17871386,39673.0,39668.0,0.374819]
[1646528395578,0.17871386,39673.0,39672.0,0.0002522]
[1646528395779,0.17871386,39673.0,39672.0,0.02521623]
[1646528395980,0.21180587,39667.0,39661.0,0.16416596]
[1646528396183,0.18826347,39677.0,39666.0,0.001]
[1646528396184,0.17871386,39668.0,39666.0,0.001]
[1646528397008,0.17871386,39668.0,39667.0,0.374819]
[1646528397409,0.35144766,39676.0,39667.0,1.146719]
[1646528397609,0.07287172,39673.0,39668.0,0.374819]
[1646528398008,0.07287172,39673.0,39665.0,0.24387921]
[1646528398209,0.07287172,39673.0,39666.0,0.400079]
[1646528398210,0.07278097,39673.0,39666.0,0.400079]
[1646528398409,0.001,39674.0,39666.0,0.374819]
[1646528398610,0.07278097,39673.0,39666.0,0.374819]
[1646528398909,0.001,39674.0,39668.0,0.374819]
[1646528399112,0.07278097,39671.0,39666.0,0.374819]
[1646528399511,0.07278097,39673.0,39666.0,0.369819]
[1646528399711,0.07278097,39671.0,39666.0,0.369819]
[1646528399910,0.18787475,39672.0,39666.0,0.369819]
[1646528400110,0.18787475,39672.0,39666.0,0.366449]
[1646528400313,0.07278097,39671.0,39667.0,0.375184]
[1646528400760,0.07278097,39672.0,39668.0,0.375184]
[1646528400956,0.07278097,39671.0,39663.0,0.004]
[1646528401157,0.07278097,39671.0,39665.0,0.00015456]
[1646528401756,0.07278097,39671.0,39665.0,0.15760268]
[1646528401954,0.07278097,39671.0,39666.0,0.375184]
[1646528402155,0.07278097,39671.0,39666.0,9.375184]
[1646528402355,0.07278097,39671.0,39668.0,0.01788896]
[1646528402555,0.07278097,39671.0,39667.0,0.35075058]
[1646528402955,0.07278097,39673.0,39668.0,0.16170615]
[1646528403158,0.07278097,39673.0,39669.0,0.41196092]
[1646528403355,0.07278097,39673.0,39669.0,0.35075058]
[1646528403557,0.07278097,39673.0,39668.0,0.16170615]
[1646528403757,0.07278097,39673.0,39670.0,0.01788896]
[1646528403957,0.07278097,39673.0,39669.0,0.35075058]
[1646528404260,0.00010817,39675.0,39670.0,0.375184]
[1646528404516,0.4848,39684.0,39672.0,1.172344]
[1646528404711,0.00010817,39675.0,39674.0,0.79716]
[1646528404912,0.00010817,39675.0,39674.0,1.68555982]
[1646528405311,0.00043259,39685.0,39675.0,0.00021634]
[1646528405511,0.00043259,39685.0,39677.0,0.7719]
[1646528405711,0.00043259,39685.0,39678.0,1.49783458]
[1646528405911,0.07278097,39685.0,39678.0,0.72593458]
[1646528406313,0.27314997,39699.0,39684.0,0.19457431]
[1646528406314,0.34451663,39696.0,39684.0,0.19457431]
[1646528406516,0.1137,39699.0,39685.0,0.35075058]
[1646528406817,0.4971,39700.0,39692.0,0.01788896]
[1646528406818,0.27321478,39695.0,39692.0,0.01788896]
[1646528407016,0.15,39697.0,39692.0,0.01788896]
[1646528407216,0.00010817,39694.0,39692.0,0.01788896]
[1646528407515,0.00010817,39694.0,39684.0,0.19457431]
[1646528407714,0.00010817,39694.0,39685.0,0.375184]
[1646528407916,0.00010817,39694.0,39685.0,1.52159324]
[1646528408186,0.25399949,39705.0,39689.0,0.79716]
[1646528408387,0.25399949,39705.0,39691.0,0.79716]
[1646528408583,0.25399949,39705.0,39695.0,0.18374668]